bitfinex/quotes_SOLUSD_20260217
["timestamp","ask_amount","ask_price","bid_price","bid_amount"]
[1771310013355,0.45815703,86.619,86.593,0.45046645]
[1771310015559,0.45815703,86.619,86.595,0.45046645]
[1771310029450,0.45815703,86.619,86.597,0.48512152]
[1771310030243,0.49442763,86.626,86.599,0.47836915]
[1771310031565,0.49442763,86.626,86.6,11.54734411]
[1771310031751,0.49442763,86.626,86.601,0.47836915]
[1771310034666,0.49442763,86.626,86.59,3.26363913]
[1771310034667,0.49442763,86.626,86.603,0.47836915]
[1771310037365,0.49442763,86.625,86.591,11.5485443]
[1771310037570,0.49442763,86.619,86.592,0.47836915]
[1771310038272,0.49442763,86.625,86.592,0.47836915]
[1771310039576,0.49442763,86.625,86.593,11.54827757]
[1771310039958,0.49442763,86.625,86.594,0.47836915]
[1771310040585,0.49442763,86.625,86.595,11.54801085]
[1771310040770,0.49442763,86.625,86.596,0.47836915]
[1771310042087,0.49442763,86.63,86.598,0.47836915]
[1771310042288,0.49442763,86.63,86.601,0.47836915]
[1771310042856,18.44,86.631,86.601,0.47836915]
[1771310043882,0.49442763,86.64,86.601,0.47836915]
[1771310044778,0.49442763,86.64,86.611,0.47836915]
[1771310046670,0.49442763,86.64,86.612,11.54574423]
[1771310046877,0.54987001,111.36,86.612,11.54574423]
[1771310046878,0.49442763,86.65,86.621,0.47836915]
[1771310047785,0.49442763,86.65,86.631,0.47836915]
[1771310048183,0.49442763,86.661,86.631,0.47836915]
[1771310049092,0.49442763,86.659,86.631,0.47836915]
[1771310049692,3.26363913,86.65,86.612,28.86436059]
[1771310049982,0.49442763,86.649,86.613,0.47836915]
[1771310050482,0.49442763,86.649,86.616,11.54509009]
[1771310050692,0.1,86.7,86.619,4.61729252]
[1771310050866,0.1,86.7,86.569,24.04740634]
[1771310050867,0.1,86.7,86.691,0.47836915]
[1771310051059,6.03599085,86.713,86.691,0.47836915]
[1771310051365,0.49442763,86.716,86.691,0.47836915]
[1771310051562,0.49442763,86.712,86.691,0.47836915]
[1771310051980,12.74,86.739,86.692,0.47836915]
[1771310051981,3.26363913,86.73,86.692,0.47836915]
[1771310052983,3.26363913,86.73,86.694,0.47836915]
[1771310053168,11.52907464,86.738,86.694,0.47836915]
[1771310053980,0.49442763,86.737,86.7,3.74200828]
[1771310054864,0.49442763,86.737,86.701,0.47699617]
[1771310055989,0.49442763,86.737,86.702,11.53375931]
[1771310056291,0.49442763,86.737,86.711,0.47699617]
[1771310057475,0.49442763,86.737,86.71,3.26363913]
[1771310057476,0.49442763,86.737,86.712,11.53242919]
[1771310057686,0.49442763,86.737,86.713,0.47699617]
[1771310060282,0.49442763,86.737,86.707,0.47699617]
[1771310061190,0.49442763,86.737,86.711,0.47699617]
[1771310062590,0.49442763,86.737,86.712,11.53242919]
[1771310065087,0.49442763,86.737,86.712,12.00942536]
[1771310066796,0.47052374,86.736,86.707,11.53304371]
[1771310069002,0.47052374,86.736,86.705,0.47699617]
[1771310071300,0.47052374,86.736,86.71,3.26363913]
[1771310073404,0.47052374,86.736,86.711,11.53256218]
[1771310074394,0.47052374,86.736,86.708,0.47699617]
[1771310075004,0.47052374,86.736,86.711,0.47699617]
[1771310078101,0.47052374,86.736,86.711,12.00954646]
[1771310079002,0.47052374,86.729,86.702,0.47699617]
[1771310080107,0.47052374,86.727,86.702,0.47699617]
[1771310080609,0.47052374,86.727,86.704,0.47699617]
[1771310082015,0.47052374,86.727,86.706,0.47699617]
[1771310083511,18.79052374,86.727,86.706,0.47699617]
[1771310083714,0.47052374,86.726,86.706,0.47699617]
[1771310085912,0.47052374,86.726,86.7,14.78879236]
[1771310086301,0.47052374,86.726,86.701,0.49148471]
[1771310092027,0.4854509,86.724,86.701,0.49148471]
[1771310093315,0.4854509,86.722,86.701,0.49148471]
[1771310094300,18.34,86.721,86.701,0.49148471]
[1771310094505,0.4854509,86.72,86.701,0.49148471]
[1771310099722,0.4854509,86.718,86.692,0.49152341]
[1771310099925,0.4854509,86.716,86.692,0.49152341]
[1771310100219,0.4854509,86.716,86.686,11.53581631]
[1771310100420,0.4854509,86.716,86.681,0.49152341]
[1771310100421,0.4854509,86.714,86.682,0.49152341]
[1771310100922,0.4854509,86.714,86.691,0.49152341]
[1771310102227,0.4854509,86.712,86.687,0.49152341]
[1771310102406,0.4854509,86.712,86.68,3.25485168]
[1771310102606,0.4854509,86.71,86.68,3.25485168]
[1771310104130,0.4854509,86.708,86.68,3.25485168]
[1771310104317,18.34,86.707,86.68,3.25485168]
[1771310104522,0.4854509,86.706,86.68,3.25485168]
[1771310105024,0.4854509,86.706,86.681,0.49152341]
[1771310105719,0.4854509,86.706,86.682,0.49152341]
[1771310105921,18.36,86.705,86.69,3.74637509]
[1771310106109,18.8454509,86.705,86.69,3.74637509]
[1771310106311,18.34,86.704,86.69,3.74637509]
[1771310107912,18.8254509,86.704,86.69,3.74637509]
[1771310108229,0.4854509,86.703,86.69,3.25485168]
[1771310111516,0.4854509,86.703,86.688,0.49152341]
[1771310120129,0.47404378,86.703,86.689,11.53548893]
[1771310120433,0.47404378,86.703,86.673,28.84393293]
[1771310120434,0.47404378,86.703,86.69,3.75261667]
[1771310120816,0.47404378,86.703,86.69,0.49776499]
[1771310125441,0.47404378,86.703,86.686,0.49776499]
[1771310134251,0.47404378,86.703,86.687,12.03352006]
[1771310135651,0.47404378,86.703,86.688,0.49776499]
[1771310138837,0.47404378,86.703,86.69,3.75261667]
[1771310139159,0.47404378,86.724,86.691,0.49776499]
[1771310139336,0.47404378,86.724,86.701,0.49776499]
[1771310139538,0.47404378,86.724,86.71,3.25485168]
[1771310139744,0.47404378,86.724,86.71,3.75261667]
[1771310140161,0.47404378,86.724,86.711,0.49776499]
[1771310140854,0.47404378,86.733,86.711,0.49776499]
[1771310141859,0.47404378,86.733,86.7,3.25485168]
[1771310141860,0.47404378,86.733,86.703,0.49776499]
[1771310144148,0.47404378,86.733,86.704,12.01738843]
[1771310145964,0.47404378,86.733,86.704,11.53349326]
[1771310146668,0.47404378,86.733,86.704,12.01738843]
[1771310146870,0.47404378,86.733,86.705,0.48389517]
[1771310147257,0.45171794,86.731,86.705,0.48389517]
[1771310148058,0.45171794,86.729,86.699,11.53410236]
[1771310148258,0.45171794,86.729,86.7,0.48389517]
[1771310150252,0.45171794,86.729,86.701,11.53389234]
[1771310150454,0.45171794,86.729,86.701,12.02170281]
[1771310150659,0.45171794,86.729,86.702,0.48781047]
[1771310152581,0.45171794,86.729,86.704,0.48781047]
[1771310155889,0.45171794,86.729,86.706,0.48781047]
[1771310160568,18.38,86.732,86.706,0.48781047]
[1771310160569,0.46217382,86.727,86.706,0.48781047]
[1771310162885,0.46217382,86.727,86.708,0.48781047]
[1771310169992,0.46217382,86.727,86.702,0.48781047]
[1771310172774,0.46217382,86.727,86.703,0.48781047]
[1771310174294,0.45079502,86.731,86.705,0.49587679]
[1771310174481,18.9,86.726,86.705,0.49587679]
[1771310174795,17.87109167,86.726,86.71,3.25464374]
[1771310175181,0.1,86.74,86.71,3.25464374]
[1771310175493,18.9,86.734,86.71,3.25464374]
[1771310176075,0.5,86.733,86.704,11.53349326]
[1771310177395,0.5,86.731,86.704,11.53349326]
[1771310178288,0.5,86.729,86.694,11.53482363]
[1771310180501,0.5,86.729,86.7,3.25464374]
[1771310181693,11.53003574,86.73,86.7,3.25464374]
[1771310181694,0.5,86.727,86.7,3.25464374]
[1771310182803,0.5,86.727,86.701,11.53389234]
[1771310185103,0.5,86.727,86.691,11.5352228]
[1771310190413,0.5,86.727,86.691,40.3732798]
[1771310190614,0.5,86.727,86.7,3.25464374]
[1771310194011,0.5,86.727,86.701,11.53389234]
[1771310194228,0.5,86.726,86.701,11.53389234]
[1771310195013,0.5,86.725,86.701,11.53389234]
[1771310195328,0.5,86.724,86.701,11.53389234]
[1771310198119,0.5,86.724,86.691,40.3732798]
[1771310198418,0.5,86.723,86.691,40.3732798]
[1771310199115,0.5,86.723,86.7,3.25464374]
[1771310199434,0.5,86.723,86.691,40.3732798]
[1771310201618,0.5,86.723,86.7,3.25464374]
[1771310201922,0.5,86.723,86.69,3.25464374]
[1771310204427,0.5,86.723,86.7,3.25464374]
[1771310204926,0.5,86.723,86.691,11.5352228]
[1771310205331,0.5,86.723,86.691,40.3732798]
[1771310213643,0.5,86.719,86.677,11.53708596]
[1771310213822,0.5,86.716,86.671,40.38259625]
[1771310214025,0.5,86.716,86.68,3.25459437]
[1771310214927,0.5,86.716,86.69,3.25459437]
[1771310215122,28.82224871,86.739,86.7,3.25459437]
[1771310215123,18.82,86.729,86.7,3.25459437]
[1771310215327,0.5,86.728,86.7,3.25459437]
[1771310216150,0.5,86.728,86.7,14.78855711]
[1771310220646,0.5,86.734,86.7,14.78855711]
[1771310224827,0.5,86.734,86.71,3.25459437]
[1771310226134,11.52952369,86.734,86.71,3.25459437]
[1771310226358,0.5,86.733,86.71,3.25459437]
[1771310226859,0.5,86.733,86.697,11.53442448]
[1771310227169,0.5,86.733,86.7,3.25459437]
[1771310228258,0.5,86.733,86.701,11.53389234]
[1771310234365,0.5,86.733,86.701,40.36862319]
[1771310234550,0.5,86.733,86.711,11.53256218]
[1771310235059,11.52904928,86.738,86.711,11.53256218]
[1771310235060,0.5,86.737,86.711,11.53256218]
[1771310235559,0.6,86.74,86.711,11.53256218]
[1771310243992,0.1,86.74,86.711,11.53256218]
[1771310244157,0.1,86.75,86.73,3.25459437]
[1771310244356,0.1,86.75,86.711,40.36396765]
[1771310244357,0.5,86.764,86.74,3.25459437]
[1771310250478,0.5,86.768,86.741,11.52857356]
[1771310250968,0.5,86.768,86.74,3.25459437]
[1771310251376,0.5,86.768,86.75,3.25459437]
[1771310251576,0.5,86.772,86.75,3.25459437]
[1771310254770,0.5,86.772,86.74,3.25459437]
[1771310255677,0.5,86.779,86.75,3.25459437]
[1771310255876,18.78,86.783,86.75,3.25459437]
[1771310256378,19.28,86.783,86.75,3.25459437]
[1771310256561,19.28,86.783,86.718,4.61729252]
[1771310256562,19.28,86.783,86.76,3.25459437]
[1771310256762,19.28,86.783,86.761,11.52591602]
[1771310260769,0.5,86.782,86.761,11.52591602]
[1771310261980,0.5,86.782,86.76,3.25459437]
[1771310262690,0.5,86.782,86.75,3.25459437]
[1771310262877,0.5,86.779,86.73,24.04740634]
[1771310263081,0.5,86.769,86.73,3.25459437]
[1771310264179,0.5,86.768,86.731,11.5299028]
[1771310265667,0.5,86.759,86.731,11.5299028]
[1771310266371,0.5,86.749,86.721,11.53123234]
[1771310267583,0.5,86.749,86.72,3.25459437]
[1771310267984,0.5,86.749,86.72,3.25338297]
[1771310269674,0.5,86.749,86.721,11.53123234]
[1771310271786,0.5,86.749,86.71,3.25338297]
[1771310271787,0.5,86.747,86.711,11.53256218]
[1771310272198,0.5,86.747,86.72,3.25338297]
[1771310272389,0.5,86.747,86.711,11.53256218]
[1771310273788,0.5,86.745,86.711,11.53256218]
[1771310274896,11.52817485,86.744,86.711,11.53256218]
[1771310275094,0.5,86.743,86.711,11.53256218]
[1771310277206,0.5,86.741,86.71,3.25338297]
[1771310279908,21.99338297,86.75,86.71,3.25338297]
[1771310279909,0.5,86.739,86.71,3.25338297]
[1771310280278,0.5,86.739,86.711,11.53256218]
[1771310282202,0.5,86.737,86.704,11.53348771]
[1771310282404,0.5,86.736,86.704,11.53348771]
[1771310284303,0.5,86.729,86.691,11.5352228]
[1771310285186,0.5,86.729,86.7,3.25338297]
[1771310285391,0.5,86.719,86.68,3.25338297]
[1771310285704,0.5,86.717,86.68,3.25338297]
[1771310286691,0.5,86.715,86.68,3.25338297]
[1771310287000,0.5,86.715,86.69,3.25338297]
[1771310287407,0.5,86.715,86.691,11.5352228]
[1771310287699,0.5,86.714,86.684,11.53607614]
[1771310287897,0.5,86.714,86.69,3.25338297]
[1771310293605,0.5,86.714,86.691,11.5352228]
[1771310293799,0.5,86.714,86.69,3.25338297]
[1771310295507,0.5,86.714,86.691,11.5352228]
[1771310295708,0.5,86.714,86.69,3.25338297]
[1771310296193,0.5,86.714,86.7,3.25338297]
[1771310296598,0.5,86.714,86.691,11.5352228]
[1771310306926,12.03220423,86.714,86.69,3.25338297]
[1771310307126,0.5,86.713,86.69,3.25338297]
[1771310307532,0.5,86.713,86.685,11.53600989]
[1771310309630,0.5,86.748,86.69,3.25338297]
[1771310309830,0.5,86.727,86.7,3.25338297]
[1771310310829,18.74,86.728,86.71,3.25338297]
[1771310311030,0.5,86.733,86.71,3.25338297]
[1771310313950,0.5,86.733,86.7,3.25338297]
[1771310316337,0.5,86.733,86.701,11.53389234]
[1771310316526,0.5,86.731,86.684,11.5361543]
[1771310316738,0.5,86.731,86.7,3.25338297]
[1771310318041,3.25338297,86.74,86.7,3.25338297]
[1771310318042,0.5,86.759,86.72,3.25338297]
[1771310318334,0.5,86.749,86.71,14.7860684]
[1771310318516,0.5,86.739,86.7,3.25338297]
[1771310318834,0.5,86.739,86.68,9.27524528]
[1771310318835,0.5,86.729,86.685,11.53602122]
[1771310319015,0.5,86.719,86.681,11.53655356]
[1771310319217,0.5,86.719,86.68,3.25338297]
[1771310320642,0.5,86.717,86.68,3.25338297]
[1771310320822,0.5,86.717,86.681,11.53655356]
[1771310324238,0.5,86.715,86.681,11.53655356]
[1771310325032,0.5,86.715,86.68,3.25338297]
[1771310325237,0.5,86.713,86.68,3.25338297]
[1771310326047,0.5,86.713,86.68,14.78996129]
[1771310326934,0.5,86.711,86.68,14.78996129]
[1771310327347,0.5,86.711,86.69,3.25338297]
[1771310327645,0.5,86.711,86.68,3.25338297]
[1771310328057,0.5,86.711,86.68,3.25636428]
[1771310328257,0.5,86.711,86.67,11.53798319]
[1771310328555,0.5,86.711,86.68,3.25636428]
[1771310329349,0.5,86.709,86.68,3.25636428]
[1771310330833,0.5,86.707,86.68,3.25636428]
[1771310333454,0.5,86.705,86.68,3.25636428]
[1771310335453,0.5,86.703,86.68,3.25636428]
[1771310336441,0.5,86.701,86.68,3.25636428]
[1771310336756,0.5,86.7,86.68,3.25636428]
[1771310340477,0.5,86.698,86.68,3.25636428]
[1771310340856,0.5,86.701,86.69,3.25636428]
[1771310341954,18.76,86.702,86.69,3.25636428]
[1771310342670,0.5,86.706,86.69,3.25636428]
[1771310343249,0.5,86.718,86.7,3.25636428]
[1771310343567,18.78,86.719,86.71,3.25636428]
[1771310343764,0.5,86.723,86.71,3.25636428]
[1771310345275,0.5,86.723,86.7,3.25636428]
[1771310346063,0.5,86.741,86.71,3.25636428]
[1771310346276,0.5,86.739,86.72,3.25636428]
[1771310346774,0.5,86.739,86.71,3.25636428]
[1771310347066,0.5,86.739,86.711,11.53256218]
[1771310352373,0.5,86.739,86.72,3.25636428]
[1771310352683,0.5,86.739,86.711,11.53256218]
[1771310353197,0.5,86.739,86.72,3.25636428]
[1771310353480,18.78,86.74,86.72,3.25636428]
[1771310354583,19.28,86.74,86.721,11.53123234]
[1771310355584,0.5,86.739,86.721,11.53123234]
[1771310357387,0.5,86.739,86.711,11.53256218]
[1771310373387,0.5,86.739,86.72,3.25636428]
[1771310374076,0.5,86.739,86.71,3.25636428]
[1771310375996,0.5,86.739,86.711,11.53256218]
[1771310376595,0.5,86.739,86.711,40.36396765]
[1771310376780,0.5,86.739,86.72,3.25636428]
[1771310376986,0.5,86.739,86.711,40.36396765]
[1771310379776,0.5,86.752,86.72,3.25636428]
[1771310380902,28.81319786,86.766,86.711,28.83140547]
[1771310380903,0.5,86.757,86.73,3.25636428]
[1771310382309,0.5,86.757,86.731,11.5299028]
[1771310391305,0.5,86.768,86.74,3.25236641]
[1771310391514,0.5,86.774,86.76,3.25236641]
[1771310391703,0.5,86.774,86.75,3.25236641]
[1771310395525,0.5,86.774,86.751,11.52724464]
[1771310398223,0.5,86.773,86.732,11.52976986]
[1771310398430,0.5,86.769,86.733,32.7]
[1771310398813,0.5,86.767,86.732,11.52976986]
[1771310400024,0.5,86.765,86.732,11.52976986]
[1771310401124,0.5,86.765,86.73,3.25236641]
[1771310401307,0.5,86.765,86.731,11.5299028]
[1771310402229,11.52551749,86.764,86.731,11.5299028]
[1771310402409,0.5,86.763,86.731,11.5299028]
[1771310406428,0.5,86.763,86.74,3.25236641]
[1771310407523,0.5,86.775,86.74,3.25236641]
[1771310410223,11.52418927,86.774,86.741,11.52857356]
[1771310410431,0.5,86.773,86.75,3.25236641]
[1771310412536,0.5,86.773,86.74,3.25236641]
[1771310413822,0.5,86.773,86.741,11.52857356]
[1771310414032,0.5,86.773,86.75,3.25236641]
[1771310415316,0.5,86.773,86.74,3.25236641]
[1771310416343,0.5,86.769,86.735,11.52937107]
[1771310417320,0.5,86.769,86.74,3.25236641]
[1771310418532,0.5,86.769,86.741,11.52857356]
[1771310418732,0.5,86.767,86.74,14.78106895]
[1771310430350,0.5,86.765,86.74,14.78106895]
[1771310431529,0.5,86.765,86.75,3.25236641]
[1771310431849,0.5,86.765,86.74,14.78106895]
[1771310434951,0.5,86.785,86.75,3.25236641]
[1771310435253,0.5,86.779,86.74,14.78103269]
[1771310435647,0.5,86.769,86.73,3.25236641]
[1771310435955,0.5,86.768,86.73,3.25236641]
[1771310437377,0.5,86.766,86.731,11.5299028]
[1771310437654,0.5,86.759,86.72,3.25236641]
[1771310438549,0.5,86.757,86.721,11.53123234]
[1771310439454,0.5,86.757,86.73,3.25236641]
[1771310440753,0.5,86.757,86.731,11.5299028]
[1771310442462,0.5,86.766,86.74,3.25236641]
[1771310442635,0.5,86.766,86.721,28.82808085]
[1771310442636,0.5,86.786,86.76,3.25236641]
[1771310442959,0.5,86.791,86.77,3.25236641]
[1771310443144,0.5,86.797,86.78,3.25236641]
[1771310443347,0.5,86.797,86.77,3.25236641]
[1771310443662,0.5,86.791,86.77,3.25236641]
[1771310447342,0.5,86.799,86.771,11.5245877]
[1771310447543,0.5,86.799,86.78,3.25236641]
[1771310450038,0.5,86.799,86.78,3.2491525]
[1771310453163,19.18,86.804,86.78,3.2491525]
[1771310453366,0.5,86.803,86.78,3.2491525]
[1771310457269,32.1445117,86.82,86.79,3.2491525]
[1771310457270,0.5,86.818,86.79,3.2491525]
[1771310457575,0.5,86.818,86.781,11.52325969]
[1771310459358,11.5184814,86.817,86.79,3.2491525]
[1771310459555,0.5,86.816,86.79,3.2491525]
[1771310460155,0.5,86.816,86.78,3.2491525]
[1771310460366,0.5,86.809,86.77,3.2491525]
[1771310460570,0.5,86.809,86.771,32.7]
[1771310460769,0.5,86.809,86.78,3.2491525]
[1771310460974,18.7,86.813,86.79,3.2491525]
[1771310461273,19.2,86.813,86.79,3.2491525]
[1771310462664,18.7,86.813,86.79,3.2491525]
[1771310462857,0.5,86.815,86.79,3.2491525]
[1771310466567,0.5,86.815,86.77,32.7]
[1771310466568,0.5,86.815,86.8,3.2491525]
[1771310466774,0.5,86.815,86.791,11.52193199]
[1771310467399,11.51835798,86.818,86.791,11.52193199]
[1771310467759,12.01835798,86.818,86.791,11.52193199]
[1771310468252,12.01835798,86.818,86.79,3.2491525]
[1771310468457,0.5,86.817,86.791,11.52193199]
[1771310468655,11.51861408,86.816,86.79,3.2491525]
[1771310469583,0.5,86.817,86.8,3.2491525]
[1771310469961,11.51861408,86.816,86.79,3.2491525]
[1771310470571,0.5,86.815,86.79,3.2491525]
[1771310471680,0.5,86.815,86.79,14.77118656]
[1771310471876,11.51861408,86.816,86.79,14.77118656]
[1771310472080,11.51861408,86.816,86.8,3.2491525]
[1771310472385,0.5,86.815,86.8,3.2491525]
[1771310472672,0.5,86.819,86.8,3.2491525]
[1771310472879,0.5,86.818,86.783,11.52299413]
[1771310473082,0.5,86.818,86.8,3.2491525]
[1771310473259,0.6,86.82,86.8,3.2491525]
[1771310479185,0.1,86.82,86.8,3.2491525]
[1771310480286,0.6,86.82,86.8,3.2491525]
[1771310480792,0.1,86.82,86.8,3.2491525]
[1771310482197,0.5,86.819,86.8,3.2491525]
[1771310484176,0.1,86.82,86.8,3.2491525]
[1771310485189,0.6,86.82,86.8,3.2491525]
[1771310487998,0.6,86.82,86.795,32.7]
[1771310488176,0.5,86.818,86.795,32.7]
[1771310488579,0.5,86.818,86.796,32.7]
[1771310489104,0.5,86.816,86.796,31.03098324]
[1771310489398,0.5,86.816,86.796,30.53098324]
[1771310492096,0.47581589,86.814,86.796,30.53098324]
[1771310494489,0.47581589,86.814,86.791,0.49065071]
[1771310498198,0.47581589,86.812,86.791,0.49065071]
[1771310499100,0.1,86.82,86.801,0.49065071]
[1771310499313,3.2491525,86.83,86.799,0.49065071]
[1771310499487,0.47581589,86.829,86.793,0.49065071]
[1771310500302,0.47581589,86.827,86.793,0.49065071]
[1771310500882,0.47581589,86.827,86.795,0.49065071]
[1771310503298,0.47581589,86.825,86.795,0.49065071]
[1771310505385,0.47581589,86.825,86.801,0.48203402]
[1771310507998,0.47581589,86.825,86.8,3.2491525]
[1771310507999,0.45589851,86.832,86.803,0.48203402]
[1771310510087,0.45589851,86.832,86.805,0.49955193]
[1771310510400,0.45589851,86.832,86.811,0.49955193]
[1771310512505,0.1,86.84,86.821,0.49955193]
[1771310514198,0.1,86.84,86.822,11.51781806]
[1771310514410,0.1,86.84,86.823,0.49955193]
[1771310514594,0.1,86.84,86.831,0.49955193]
[1771310517911,0.48127031,86.858,86.832,0.49955193]
[1771310518296,0.48127031,86.865,86.841,0.49955193]
[1771310518609,32.12230585,86.88,86.851,0.49955193]
[1771310518610,0.48127031,86.878,86.851,0.49955193]
[1771310518818,0.48127031,86.878,86.834,4.61729252]
[1771310518819,0.48127031,86.878,86.861,0.49955193]
[1771310518999,0.1,86.88,86.861,0.49955193]
[1771310520506,0.58127031,86.88,86.861,0.49955193]
[1771310520700,0.1,86.88,86.861,0.49955193]
[1771310521102,0.58127031,86.88,86.861,0.49955193]
[1771310521297,0.58127031,86.88,86.852,0.49955193]
[1771310522112,0.48127031,86.878,86.852,0.49955193]
[1771310524015,0.48127031,86.878,86.861,0.49955193]
[1771310524811,0.48127031,86.878,86.853,40.3446903]
[1771310524812,0.48127031,86.878,86.853,28.83098324]
[1771310525013,11.99179668,86.877,86.854,0.49955193]
[1771310525215,0.48127031,86.876,86.854,0.49955193]
[1771310525802,0.48127031,86.876,86.853,28.83098324]
[1771310525803,0.48127031,86.876,86.853,27.23026723]
[1771310526700,0.48127031,86.874,86.853,23.40782014]
[1771310526895,3.24682197,86.87,86.831,0.5]
[1771310527094,3.24682197,86.86,86.831,0.5]
[1771310528191,3.24682197,86.86,86.804,0.5]
[1771310528398,40.28776977,86.875,86.803,44.03262412]
[1771310528399,3.24682197,86.85,86.811,0.5]
[1771310528721,3.24682197,86.84,86.811,0.5]
[1771310530617,11.51556328,86.839,86.811,0.5]
[1771310531610,3.24682197,86.85,86.813,0.5]
[1771310532117,3.24682197,86.83,86.801,0.5]
[1771310532296,40.29843871,86.852,86.801,0.5]
[1771310532612,11.51556328,86.839,86.801,0.5]
[1771310534517,3.24682197,86.83,86.801,0.5]
[1771310534717,11.51688951,86.829,86.801,0.5]
[1771310536911,11.51688951,86.829,86.796,0.5]
[1771310536912,40.3091133,86.829,86.796,0.5]
[1771310537203,3.24682197,86.82,86.783,0.5]
[1771310538600,11.51821605,86.819,86.785,0.5]
[1771310538797,3.24682197,86.81,86.785,0.5]
[1771310541800,14.76627967,86.81,86.785,0.5]
[1771310545004,11.51821605,86.819,86.786,0.5]
[1771310546011,28.78823861,86.842,86.79,3.24682197]
[1771310546206,3.24682197,86.84,86.801,0.5]
[1771310548622,11.51556328,86.839,86.801,0.5]
[1771310549410,3.24682197,86.83,86.801,0.5]
[1771310552335,11.51688951,86.829,86.801,0.5]
[1771310553728,3.24682197,86.82,86.801,0.5]
[1771310554436,3.24682197,86.82,86.789,0.5]
[1771310554638,40.3091133,86.829,86.789,0.5]
[1771310557733,3.24682197,86.82,86.784,0.5]
[1771310558933,3.24682197,86.81,86.779,0.5]
[1771310561520,11.5195429,86.809,86.779,0.5]
[1771310564923,11.5195429,86.809,86.781,0.5]
[1771310566344,46.03521097,86.891,86.801,0.5]
[1771310566528,3.24682197,86.85,86.801,0.5]
[1771310566927,3.24682197,86.85,86.81,3.24682197]
[1771310567133,3.24682197,86.86,86.811,0.5]
[1771310567329,3.24682197,86.85,86.811,0.5]
[1771310568428,11.51423735,86.849,86.812,0.5]
[1771310570843,28.78343252,86.856,86.812,0.5]
[1771310572546,3.24648112,86.85,86.812,0.5]
[1771310574537,11.51423735,86.849,86.812,0.5]
[1771310575455,3.24648112,86.84,86.812,0.5]
[1771310575636,40.29983073,86.849,86.812,0.5]
[1771310576057,40.29983073,86.849,86.814,0.5]
[1771310591173,3.24648112,86.83,86.804,7.9]
[1771310591354,3.24648112,86.83,86.801,0.5]
[1771310591355,11.51688951,86.829,86.801,0.5]
[1771310591557,40.30075879,86.847,86.801,0.5]
[1771310591867,3.24648112,86.83,86.801,0.5]
[1771310592779,14.76327645,86.83,86.801,0.5]
[1771310594861,0.46145404,86.868,86.802,0.47893603]
[1771310595063,0.46145404,86.859,86.821,0.47893603]
[1771310596872,3.24648112,86.85,86.816,0.47893603]
[1771310597077,3.24648112,86.85,86.743,46.11279659]
[1771310597078,0.46145404,86.829,86.802,7.9]
[1771310597389,0.46145404,86.819,86.797,0.47893603]
[1771310597558,0.46145404,86.819,86.79,0.47893603]
[1771310597879,0.46145404,86.809,86.785,0.47893603]
[1771310600374,0.46145404,86.827,86.791,0.47893603]
[1771310602597,0.46145404,86.825,86.792,0.47893603]
[1771310604385,11.97900679,86.824,86.792,0.47893603]
[1771310604766,11.51755275,86.824,86.794,0.47893603]
[1771310606064,0.46145404,86.826,86.794,0.47893603]
[1771310607280,11.51742009,86.825,86.795,11.521401]
[1771310607587,11.51742009,86.825,86.796,0.47893603]
[1771310608363,0.46145404,86.831,86.796,0.47893603]
[1771310608585,0.46145404,86.829,86.796,0.47893603]
[1771310609390,0.46145404,86.829,86.798,0.47893603]
[1771310611484,0.46145404,86.829,86.8,0.47893603]
[1771310612793,0.46145404,86.829,86.802,0.47893603]
[1771310618894,3.24648112,86.83,86.804,0.47893603]
[1771310619100,0.46145404,86.848,86.804,0.47893603]
[1771310619299,0.46145404,86.848,86.806,0.47893603]
[1771310620002,0.46145404,86.846,86.808,0.47893603]
[1771310620583,3.24648112,86.84,86.808,0.47893603]
[1771310620800,0.46145404,86.839,86.808,0.47893603]
[1771310622783,0.46145404,86.839,86.81,0.47893603]
[1771310624996,0.46145404,86.839,86.812,0.46381533]
[1771310632110,0.47052551,86.841,86.814,0.48056787]
[1771310636794,11.98592162,86.841,86.814,0.48056787]
[1771310640597,0.47052551,86.859,86.821,0.48056787]